[Event "Titled Tuesday Blitz November 29 Early 2022"]
[White "Yano, William Jorge Froes"]
[Black "Flis, Pawel"]
[WhiteFideId "2112949"]
[BlackFideId "1112864"]
[WhiteElo "2122"]
[BlackElo "1817"]
[Result "0-1"]
[Round "03"]
[TimeControl "180+1"]
[Date "2022.11.30"]
[WhiteClock "0:00:46"]
[BlackClock "0:00:04"]

1. e4 {[%clk 0:03:00]}  c5 {[%clk 0:03:00]} 2. Nf3 {[%clk 0:03:00]}  d6 {[%clk 0:03:00]} 3. Bb5+ {[%clk 0:03:00]}  Bd7 {[%clk 0:02:58]} 4. Bxd7+ {[%clk 0:03:00]}  Qxd7 {[%clk 0:02:59]} 5. O-O {[%clk 0:03:01]}  Nc6 {[%clk 0:02:59]} 6. c3 {[%clk 0:03:01]}  Nf6 {[%clk 0:02:58]} 7. Qe2 {[%clk 0:03:01]}  g6 {[%clk 0:02:57]} 8. Rd1 {[%clk 0:03:01]}  Bg7 {[%clk 0:02:57]} 9. d4 {[%clk 0:03:02]}  cxd4 {[%clk 0:02:57]} 10. cxd4 {[%clk 0:03:03]}  O-O {[%clk 0:02:56]} 11. e5 {[%clk 0:03:01]}  Nd5 {[%clk 0:02:42]} 12. Nc3 {[%clk 0:02:59]}  Nxc3 {[%clk 0:02:41]} 13. bxc3 {[%clk 0:02:59]}  dxe5 {[%clk 0:02:39]} 14. d5 {[%clk 0:02:52]}  Na5 {[%clk 0:02:25]} 15. Nxe5 {[%clk 0:02:50]}  Qc7 {[%clk 0:02:24]} 16. Bf4 {[%clk 0:02:44]}  Qxc3 {[%clk 0:02:16]} 17. Rac1 {[%clk 0:02:42]}  Qb4 {[%clk 0:02:06]} 18. Bd2 {[%clk 0:02:38]}  Qd6 {[%clk 0:01:31]} 19. Nxf7 {[%clk 0:02:12]}  Rxf7 {[%clk 0:01:26]} 20. Bxa5 {[%clk 0:02:12]}  Rff8 {[%clk 0:01:05]} 21. Bc3 {[%clk 0:01:56]}  Rac8 {[%clk 0:01:01]} 22. Bxg7 {[%clk 0:01:56]}  Kxg7 {[%clk 0:01:02]} 23. Rb1 {[%clk 0:01:45]}  b6 {[%clk 0:01:01]} 24. Rb3 {[%clk 0:01:45]}  Rc5 {[%clk 0:00:48]} 25. Re3 {[%clk 0:01:39]}  Rf7 {[%clk 0:00:39]} 26. Re6 {[%clk 0:01:32]}  Qc7 {[%clk 0:00:30]} 27. g3 {[%clk 0:01:22]}  Rc1 {[%clk 0:00:29]} 28. Kg2 {[%clk 0:01:17]}  Rxd1 {[%clk 0:00:28]} 29. Qxd1 {[%clk 0:01:17]}  Qc5 {[%clk 0:00:22]} 30. Qd2 {[%clk 0:01:08]}  b5 {[%clk 0:00:18]} 31. g4 {[%clk 0:01:03]}  Rxf2+ {[%clk 0:00:11]} 32. Qxf2 {[%clk 0:01:01]}  Qxd5+ {[%clk 0:00:11]} 33. Kg3 {[%clk 0:00:57]}  Qxe6 {[%clk 0:00:11]} 34. Qxa7 {[%clk 0:00:57]}  Qe5+ {[%clk 0:00:09]} 35. Kh3 {[%clk 0:00:49]}  b4 {[%clk 0:00:07]} 36. Qf2 {[%clk 0:00:42]}  h5 {[%clk 0:00:06]} 37. gxh5 {[%clk 0:00:42]}  Qxh5+ {[%clk 0:00:06]} 38. Kg2 {[%clk 0:00:41]}  Qd5+ {[%clk 0:00:05]} 39. Kg1 {[%clk 0:00:35]}  Qg5+ {[%clk 0:00:05]} 40. Kf1 {[%clk 0:00:34]}  Qb5+ {[%clk 0:00:04]} 41. Ke1 {[%clk 0:00:34]}  Qe5+ {[%clk 0:00:04]} 42. Kf1 {[%clk 0:00:33]}  Qb5+ {[%clk 0:00:04]} 43. Kg2 {[%clk 0:00:30]}  Qd5+ {[%clk 0:00:04]} 44. Kg3 {[%clk 0:00:30]}  Qg5+ {[%clk 0:00:03]} 45. Kf3 {[%clk 0:00:30]}  Qf5+ {[%clk 0:00:03]} 46. Ke3 {[%clk 0:00:31]}  Qxf2+ {[%clk 0:00:03]} 47. Kxf2 {[%clk 0:00:32]}  Kf6 {[%clk 0:00:03]} 48. Ke3 {[%clk 0:00:32]}  Ke5 {[%clk 0:00:04]} 49. h4 {[%clk 0:00:32]}  e6 {[%clk 0:00:03]} 50. Kf3 {[%clk 0:00:32]}  Kf5 {[%clk 0:00:03]} 51. Ke3 {[%clk 0:00:32]}  e5 {[%clk 0:00:04]} 52. Kf3 {[%clk 0:00:33]}  e4+ {[%clk 0:00:04]} 53. Ke3 {[%clk 0:00:33]}  Ke5 {[%clk 0:00:04]} 54. Ke2 {[%clk 0:00:34]}  Kf4 {[%clk 0:00:04]} 55. Kf2 {[%clk 0:00:34]}  e3+ {[%clk 0:00:04]} 56. Ke2 {[%clk 0:00:34]}  Ke4 {[%clk 0:00:05]} 57. Ke1 {[%clk 0:00:35]}  Kf3 {[%clk 0:00:05]} 58. Kf1 {[%clk 0:00:36]}  Kg4 {[%clk 0:00:02]} 59. h5 {[%clk 0:00:36]}  gxh5 {[%clk 0:00:01]} 60. Ke2 {[%clk 0:00:36]}  Kg3 {[%clk 0:00:02]} 61. Kxe3 {[%clk 0:00:37]}  h4 {[%clk 0:00:02]} 62. Kd4 {[%clk 0:00:38]}  Kg2 {[%clk 0:00:02]} 63. Kc4 {[%clk 0:00:39]}  h3 {[%clk 0:00:03]} 64. Kxb4 {[%clk 0:00:40]}  h2 {[%clk 0:00:03]} 65. a3 {[%clk 0:00:41]}  h1=Q {[%clk 0:00:04]} 66. a4 {[%clk 0:00:42]}  Qh7 {[%clk 0:00:03]} 67. a5 {[%clk 0:00:42]}  Qa7 {[%clk 0:00:04]} 68. Kb5 {[%clk 0:00:43]}  Kf3 {[%clk 0:00:04]} 69. Kc6 {[%clk 0:00:44]}  Kf4 {[%clk 0:00:04]} 70. Kb5 {[%clk 0:00:45]}  Ke4 {[%clk 0:00:04]} 71. a6 {[%clk 0:00:46]}  Kd5 {[%clk 0:00:04]} 72. Ka5 {[%clk 0:00:46]}  Kc6 {[%clk 0:00:04]} 73. Kb4 {[%clk 0:00:46]}  Qxa6 {[%clk 0:00:04]} 0-1


[Site "https://www.chess.com"]

[Event "Titled Tuesday Blitz November 29 Early 2022"]
[White "Zatonskih, Anna"]
[Black "Adnan, Habib"]
[WhiteFideId "14101572"]
[BlackFideId "11202270"]
[WhiteElo "2362"]
[BlackElo "2110"]
[Result "1-0"]
[Round "03"]
[TimeControl "180+1"]
[Date "2022.11.30"]
[WhiteClock "0:00:31"]
[BlackClock "0:00:17"]

1. d4 {[%clk 0:03:00]}  Nf6 {[%clk 0:02:57]} 2. c4 {[%clk 0:03:00]}  g6 {[%clk 0:02:57]} 3. g3 {[%clk 0:03:00]}  Bg7 {[%clk 0:02:58]} 4. Bg2 {[%clk 0:03:00]}  O-O {[%clk 0:02:58]} 5. Nf3 {[%clk 0:03:00]}  d6 {[%clk 0:02:59]} 6. O-O {[%clk 0:03:01]}  Nbd7 {[%clk 0:03:00]} 7. Nc3 {[%clk 0:03:01]}  e5 {[%clk 0:03:00]} 8. e4 {[%clk 0:02:59]}  exd4 {[%clk 0:03:01]} 9. Nxd4 {[%clk 0:03:00]}  a6 {[%clk 0:03:01]} 10. Re1 {[%clk 0:02:56]}  Rb8 {[%clk 0:03:01]} 11. Bf4 {[%clk 0:02:33]}  Re8 {[%clk 0:02:59]} 12. Rc1 {[%clk 0:02:25]}  Ne5 {[%clk 0:02:51]} 13. b3 {[%clk 0:02:24]}  Bg4 {[%clk 0:02:43]} 14. f3 {[%clk 0:02:04]}  Bd7 {[%clk 0:02:40]} 15. Qd2 {[%clk 0:02:03]}  c5 {[%clk 0:01:48]} 16. Nc2 {[%clk 0:02:01]}  b5 {[%clk 0:01:48]} 17. Ne3 {[%clk 0:01:58]}  Nh5 {[%clk 0:01:29]} 18. Qxd6 {[%clk 0:01:41]}  Nxf4 {[%clk 0:01:13]} 19. gxf4 {[%clk 0:01:40]}  Nc6 {[%clk 0:01:12]} 20. cxb5 {[%clk 0:01:25]}  axb5 {[%clk 0:01:12]} 21. Ncd5 {[%clk 0:01:22]}  Bd4 {[%clk 0:00:49]} 22. e5 {[%clk 0:01:01]}  Re6 {[%clk 0:00:22]} 23. Qc7 {[%clk 0:00:46]}  Qe8 {[%clk 0:00:20]} 24. Kh1 {[%clk 0:00:34]}  f6 {[%clk 0:00:17]} 25. Ng4 {[%clk 0:00:26]}  Qf7 {[%clk 0:00:07]} 26. Ngxf6+ {[%clk 0:00:26]}  Kg7 {[%clk 0:00:07]} 27. Qxd7 {[%clk 0:00:25]}  Qxd7 {[%clk 0:00:06]} 28. Nxd7 {[%clk 0:00:26]}  Rd8 {[%clk 0:00:06]} 29. N7f6 {[%clk 0:00:25]}  c4 {[%clk 0:00:06]} 30. bxc4 {[%clk 0:00:25]}  b4 {[%clk 0:00:06]} 31. Red1 {[%clk 0:00:25]}  Bc5 {[%clk 0:00:07]} 32. Bh3 {[%clk 0:00:24]}  Ree8 {[%clk 0:00:04]} 33. Nxe8+ {[%clk 0:00:23]}  Rxe8 {[%clk 0:00:05]} 34. Rc2 {[%clk 0:00:22]}  Re7 {[%clk 0:00:05]} 35. Rb1 {[%clk 0:00:21]}  h6 {[%clk 0:00:06]} 36. Bg2 {[%clk 0:00:22]}  Nd4 {[%clk 0:00:06]} 37. Rcb2 {[%clk 0:00:21]}  Nf5 {[%clk 0:00:07]} 38. Rxb4 {[%clk 0:00:20]}  g5 {[%clk 0:00:07]} 39. Rb5 {[%clk 0:00:20]}  Bd4 {[%clk 0:00:07]} 40. fxg5 {[%clk 0:00:21]}  hxg5 {[%clk 0:00:07]} 41. Rb7 {[%clk 0:00:21]}  Bxe5 {[%clk 0:00:06]} 42. Rxe7+ {[%clk 0:00:21]}  Nxe7 {[%clk 0:00:07]} 43. Nxe7 {[%clk 0:00:21]}  Kf6 {[%clk 0:00:08]} 44. Nd5+ {[%clk 0:00:22]}  Kg6 {[%clk 0:00:08]} 45. a4 {[%clk 0:00:22]}  Bd4 {[%clk 0:00:08]} 46. a5 {[%clk 0:00:23]}  Kf5 {[%clk 0:00:08]} 47. a6 {[%clk 0:00:23]}  Ba7 {[%clk 0:00:09]} 48. Rb7 {[%clk 0:00:23]}  Bc5 {[%clk 0:00:09]} 49. a7 {[%clk 0:00:23]}  Bxa7 {[%clk 0:00:10]} 50. Rxa7 {[%clk 0:00:24]}  Ke5 {[%clk 0:00:11]} 51. Rg7 {[%clk 0:00:24]}  Kd4 {[%clk 0:00:12]} 52. Rxg5 {[%clk 0:00:24]}  Kxc4 {[%clk 0:00:13]} 53. Nf4 {[%clk 0:00:24]}  Kd4 {[%clk 0:00:13]} 54. Rf5 {[%clk 0:00:24]}  Ke3 {[%clk 0:00:14]} 55. Rf8 {[%clk 0:00:25]}  Kd4 {[%clk 0:00:14]} 56. Nh3 {[%clk 0:00:25]}  Ke3 {[%clk 0:00:15]} 57. Re8+ {[%clk 0:00:25]}  Kd4 {[%clk 0:00:16]} 58. f4 {[%clk 0:00:25]}  Kc5 {[%clk 0:00:16]} 59. f5 {[%clk 0:00:26]}  Kd6 {[%clk 0:00:16]} 60. Re4 {[%clk 0:00:27]}  Kd5 {[%clk 0:00:16]} 61. f6 {[%clk 0:00:28]}  Kd6 {[%clk 0:00:16]} 62. f7 {[%clk 0:00:29]}  Kc6 {[%clk 0:00:16]} 63. f8=Q {[%clk 0:00:29]}  Kb6 {[%clk 0:00:17]} 64. Qf5 {[%clk 0:00:29]}  Kc7 {[%clk 0:00:18]} 65. Re7+ {[%clk 0:00:29]}  Kb6 {[%clk 0:00:18]} 66. Re6+ {[%clk 0:00:29]}  Kc7 {[%clk 0:00:17]} 67. Qf7+ {[%clk 0:00:30]}  Kd8 {[%clk 0:00:17]} 68. Re8# {[%clk 0:00:31]} 1-0


[Site "https://www.chess.com"]

[Event "Titled Tuesday Blitz November 29 Early 2022"]
[White "Zemlyanskii, Ivan"]
[Black "Ovchinnikov, Vsevolod"]
[WhiteFideId "24249971"]
[BlackFideId "24176842"]
[WhiteElo "2107"]
[BlackElo "2376"]
[Result "0-1"]
[Round "03"]
[TimeControl "180+1"]
[Date "2022.11.30"]
[WhiteClock "0:00:02"]
[BlackClock "0:00:09"]

1. d4 {[%clk 0:03:00]}  Nf6 {[%clk 0:02:59]} 2. c4 {[%clk 0:02:59]}  g6 {[%clk 0:02:59]} 3. Nc3 {[%clk 0:02:58]}  d5 {[%clk 0:03:00]} 4. cxd5 {[%clk 0:02:56]}  Nxd5 {[%clk 0:03:01]} 5. e4 {[%clk 0:02:53]}  Nxc3 {[%clk 0:03:01]} 6. bxc3 {[%clk 0:02:54]}  Bg7 {[%clk 0:03:02]} 7. Nf3 {[%clk 0:02:55]}  c5 {[%clk 0:03:02]} 8. Bb5+ {[%clk 0:02:54]}  Bd7 {[%clk 0:02:59]} 9. Be2 {[%clk 0:02:52]}  Bc6 {[%clk 0:02:41]} 10. d5 {[%clk 0:02:42]}  Bd7 {[%clk 0:02:33]} 11. Qc2 {[%clk 0:02:33]}  O-O {[%clk 0:02:30]} 12. O-O {[%clk 0:02:30]}  Bg4 {[%clk 0:02:30]} 13. Rb1 {[%clk 0:02:29]}  b6 {[%clk 0:02:29]} 14. c4 {[%clk 0:02:29]}  Nd7 {[%clk 0:02:25]} 15. Be3 {[%clk 0:02:25]}  e6 {[%clk 0:02:21]} 16. h3 {[%clk 0:02:14]}  Bxf3 {[%clk 0:02:21]} 17. Bxf3 {[%clk 0:02:11]}  exd5 {[%clk 0:02:21]} 18. cxd5 {[%clk 0:01:53]}  Qe7 {[%clk 0:01:43]} 19. Rfd1 {[%clk 0:01:43]}  Rad8 {[%clk 0:01:33]} 20. Bf4 {[%clk 0:01:32]}  Be5 {[%clk 0:01:31]} 21. Be3 {[%clk 0:01:27]}  Qh4 {[%clk 0:01:23]} 22. Qc1 {[%clk 0:01:10]}  Qe7 {[%clk 0:01:22]} 23. Be2 {[%clk 0:01:04]}  Bd6 {[%clk 0:01:17]} 24. Bd3 {[%clk 0:01:03]}  Ne5 {[%clk 0:01:13]} 25. Bc2 {[%clk 0:01:01]}  Nc4 {[%clk 0:01:02]} 26. Bg5 {[%clk 0:00:57]}  f6 {[%clk 0:01:00]} 27. Bh6 {[%clk 0:00:52]}  Rfe8 {[%clk 0:01:01]} 28. Bd3 {[%clk 0:00:49]}  Ne5 {[%clk 0:01:00]} 29. Bb5 {[%clk 0:00:50]}  Nd7 {[%clk 0:00:53]} 30. Re1 {[%clk 0:00:26]}  Qe5 {[%clk 0:00:50]} 31. f4 {[%clk 0:00:14]}  Qd4+ {[%clk 0:00:50]} 32. Qe3 {[%clk 0:00:05]}  Re7 {[%clk 0:00:36]} 33. Qxd4 {[%clk 0:00:04]}  cxd4 {[%clk 0:00:37]} 34. Rbd1 {[%clk 0:00:03]}  Bb4 {[%clk 0:00:20]} 35. Re2 {[%clk 0:00:02]}  Bc5 {[%clk 0:00:16]} 36. Kh1 {[%clk 0:00:02]}  Nb8 {[%clk 0:00:09]} 0-1


[Site "https://www.chess.com"]

[Event "Titled Tuesday Blitz November 29 Early 2022"]
[White "Aaditya Dhingra"]
[Black "Bortnyk, Olexandr"]
[WhiteFideId "25678191"]
[BlackFideId "14120828"]
[WhiteElo "2054"]
[BlackElo "2723"]
[Result "0-1"]
[Round "04"]
[TimeControl "180+1"]
[Date "2022.11.30"]
[WhiteClock "0:00:50"]
[BlackClock "0:01:23"]

1. Nf3 {[%clk 0:02:59]}  Nf6 {[%clk 0:02:57]} 2. b3 {[%clk 0:02:58]}  d6 {[%clk 0:02:53]} 3. d4 {[%clk 0:02:57]}  g6 {[%clk 0:02:52]} 4. Bb2 {[%clk 0:02:57]}  Bg7 {[%clk 0:02:53]} 5. g3 {[%clk 0:02:57]}  O-O {[%clk 0:02:53]} 6. Bg2 {[%clk 0:02:58]}  a5 {[%clk 0:02:50]} 7. a3 {[%clk 0:02:56]}  a4 {[%clk 0:02:45]} 8. b4 {[%clk 0:02:55]}  Nbd7 {[%clk 0:02:44]} 9. O-O {[%clk 0:02:53]}  Nb6 {[%clk 0:02:43]} 10. Nbd2 {[%clk 0:02:51]}  d5 {[%clk 0:02:40]} 11. Rc1 {[%clk 0:02:49]}  Be6 {[%clk 0:02:36]} 12. Ng5 {[%clk 0:02:34]}  Bf5 {[%clk 0:02:33]} 13. c4 {[%clk 0:02:33]}  c6 {[%clk 0:02:27]} 14. c5 {[%clk 0:02:31]}  Nbd7 {[%clk 0:02:27]} 15. Re1 {[%clk 0:02:27]}  h6 {[%clk 0:02:27]} 16. Nh3 {[%clk 0:02:23]}  Ne4 {[%clk 0:02:09]} 17. f3 {[%clk 0:01:58]}  Nxd2 {[%clk 0:02:05]} 18. Qxd2 {[%clk 0:01:59]}  e5 {[%clk 0:02:06]} 19. e3 {[%clk 0:01:52]}  Re8 {[%clk 0:01:48]} 20. Nf2 {[%clk 0:01:49]}  h5 {[%clk 0:01:40]} 21. Rcd1 {[%clk 0:01:45]}  b6 {[%clk 0:01:39]} 22. e4 {[%clk 0:01:43]}  Be6 {[%clk 0:01:36]} 23. dxe5 {[%clk 0:01:31]}  Bxe5 {[%clk 0:01:29]} 24. f4 {[%clk 0:01:26]}  Bxb2 {[%clk 0:01:26]} 25. Qxb2 {[%clk 0:01:25]}  bxc5 {[%clk 0:01:27]} 26. exd5 {[%clk 0:01:18]}  cxd5 {[%clk 0:01:28]} 27. Bxd5 {[%clk 0:01:11]}  Bxd5 {[%clk 0:01:29]} 28. Rxe8+ {[%clk 0:01:09]}  Qxe8 {[%clk 0:01:30]} 29. Rxd5 {[%clk 0:01:09]}  cxb4 {[%clk 0:01:30]} 30. Qxb4 {[%clk 0:01:07]}  Nf6 {[%clk 0:01:29]} 31. Re5 {[%clk 0:01:05]}  Qc6 {[%clk 0:01:28]} 32. Qc5 {[%clk 0:01:02]}  Qxc5 {[%clk 0:01:21]} 33. Rxc5 {[%clk 0:01:01]}  Rb8 {[%clk 0:01:22]} 34. Rc4 {[%clk 0:01:00]}  Rb1+ {[%clk 0:01:23]} 35. Kg2 {[%clk 0:00:59]}  Rb2 {[%clk 0:01:23]} 36. Kf3 {[%clk 0:00:56]}  Rb3+ {[%clk 0:01:24]} 37. Kg2 {[%clk 0:00:51]}  Rxa3 {[%clk 0:01:23]} 38. Nd3 {[%clk 0:00:50]}  Rxd3 {[%clk 0:01:23]} 0-1


[Site "https://www.chess.com"]

[Event "Titled Tuesday Blitz November 29 Early 2022"]
[White "Aarav Dengla"]
[Black "Lesbekova, Assel"]
[WhiteFideId "45059756"]
[BlackFideId "13713248"]
[WhiteElo "2261"]
[BlackElo "1700"]
[Result "1-0"]
[Round "04"]
[TimeControl "180+1"]
[Date "2022.11.30"]
[WhiteClock "0:00:01"]
[BlackClock "0:00:08"]

1. e4 {[%clk 0:02:57]}  c5 {[%clk 0:02:59]} 2. Nf3 {[%clk 0:02:55]}  Nc6 {[%clk 0:02:59]} 3. b3 {[%clk 0:02:52]}  d5 {[%clk 0:02:57]} 4. exd5 {[%clk 0:02:51]}  Qxd5 {[%clk 0:02:57]} 5. Bb2 {[%clk 0:02:51]}  e5 {[%clk 0:02:56]} 6. d3 {[%clk 0:02:47]}  Bg4 {[%clk 0:02:52]} 7. Be2 {[%clk 0:02:47]}  Nf6 {[%clk 0:02:52]} 8. h3 {[%clk 0:02:47]}  Bh5 {[%clk 0:02:51]} 9. Nc3 {[%clk 0:02:46]}  Qd7 {[%clk 0:02:49]} 10. Nb5 {[%clk 0:02:28]}  a6 {[%clk 0:02:42]} 11. Nxe5 {[%clk 0:02:19]}  Nxe5 {[%clk 0:02:36]} 12. Bxe5 {[%clk 0:02:20]}  axb5 {[%clk 0:02:26]} 13. Bxh5 {[%clk 0:02:17]}  Qe6 {[%clk 0:02:25]} 14. f4 {[%clk 0:02:12]}  Nxh5 {[%clk 0:02:23]} 15. Qxh5 {[%clk 0:02:12]}  Bd6 {[%clk 0:02:22]} 16. O-O {[%clk 0:01:59]}  Bxe5 {[%clk 0:02:20]} 17. Rfe1 {[%clk 0:01:24]}  Bd4+ {[%clk 0:02:14]} 18. Kh1 {[%clk 0:01:10]}  Be3 {[%clk 0:02:11]} 19. Qf3 {[%clk 0:01:09]}  O-O {[%clk 0:02:09]} 20. Rxe3 {[%clk 0:01:08]}  Qf6 {[%clk 0:02:07]} 21. Re5 {[%clk 0:01:08]}  h6 {[%clk 0:02:02]} 22. Rae1 {[%clk 0:00:31]}  Rxa2 {[%clk 0:01:59]} 23. Rxc5 {[%clk 0:00:31]}  b4 {[%clk 0:01:56]} 24. Qxb7 {[%clk 0:00:19]}  Qxf4 {[%clk 0:01:55]} 25. Qe4 {[%clk 0:00:18]}  Qf2 {[%clk 0:01:53]} 26. Rc4 {[%clk 0:00:09]}  Rxc2 {[%clk 0:01:44]} 27. Rxc2 {[%clk 0:00:10]}  Qxc2 {[%clk 0:01:44]} 28. Qc4 {[%clk 0:00:10]}  Qd2 {[%clk 0:01:41]} 29. Rf1 {[%clk 0:00:11]}  Qe2 {[%clk 0:01:39]} 30. Rf3 {[%clk 0:00:11]}  Qe1+ {[%clk 0:01:37]} 31. Kh2 {[%clk 0:00:11]}  Qc3 {[%clk 0:01:35]} 32. Kg1 {[%clk 0:00:12]}  Qa1+ {[%clk 0:01:33]} 33. Kh2 {[%clk 0:00:11]}  Qe5+ {[%clk 0:01:33]} 34. Kg1 {[%clk 0:00:11]}  Qe7 {[%clk 0:01:33]} 35. Rf1 {[%clk 0:00:12]}  Rd8 {[%clk 0:01:32]} 36. d4 {[%clk 0:00:12]}  Rd7 {[%clk 0:01:23]} 37. Qc8+ {[%clk 0:00:12]}  Kh7 {[%clk 0:01:23]} 38. Qc4 {[%clk 0:00:12]}  Rc7 {[%clk 0:01:16]} 39. Qd3+ {[%clk 0:00:12]}  g6 {[%clk 0:01:14]} 40. d5 {[%clk 0:00:12]}  Qc5+ {[%clk 0:01:08]} 41. Kh1 {[%clk 0:00:11]}  Rd7 {[%clk 0:01:07]} 42. Rd1 {[%clk 0:00:11]}  Rd6 {[%clk 0:01:02]} 43. Qc4 {[%clk 0:00:11]}  Qb6 {[%clk 0:00:58]} 44. Qf4 {[%clk 0:00:10]}  Rf6 {[%clk 0:00:56]} 45. Qe5 {[%clk 0:00:10]}  Rd6 {[%clk 0:00:53]} 46. Rf1 {[%clk 0:00:08]}  Rd7 {[%clk 0:00:49]} 47. d6 {[%clk 0:00:07]}  Qa6 {[%clk 0:00:42]} 48. Rd1 {[%clk 0:00:05]}  Qc6 {[%clk 0:00:38]} 49. Qe8 {[%clk 0:00:05]}  Qb7 {[%clk 0:00:30]} 50. Qe5 {[%clk 0:00:04]}  Qc6 {[%clk 0:00:30]} 51. Qd4 {[%clk 0:00:04]}  Qc2 {[%clk 0:00:28]} 52. Re1 {[%clk 0:00:03]}  Qxb3 {[%clk 0:00:27]} 53. Re8 {[%clk 0:00:03]}  Qb1+ {[%clk 0:00:20]} 54. Kh2 {[%clk 0:00:03]}  g5 {[%clk 0:00:20]} 55. Qf6 {[%clk 0:00:03]}  Qg1+ {[%clk 0:00:08]} 56. Kxg1 {[%clk 0:00:02]}  b3 {[%clk 0:00:08]} 57. Rh8# {[%clk 0:00:01]} 1-0


[Site "https://www.chess.com"]

[Event "Titled Tuesday Blitz November 29 Early 2022"]
[White "Aloma Vidal, Robert"]
[Black "Bowden, Karl"]
[WhiteFideId "2260409"]
[BlackFideId "400548"]
[WhiteElo "2435"]
[BlackElo "2494"]
[Result "1/2-1/2"]
[Round "04"]
[TimeControl "180+1"]
[Date "2022.11.30"]
[WhiteClock "0:00:13"]
[BlackClock "0:00:07"]

1. e4 {[%clk 0:03:00]}  e5 {[%clk 0:02:59]} 2. Nf3 {[%clk 0:03:00]}  d5 {[%clk 0:03:00]} 3. exd5 {[%clk 0:02:52]}  e4 {[%clk 0:02:59]} 4. Qe2 {[%clk 0:02:53]}  Nf6 {[%clk 0:02:59]} 5. Nc3 {[%clk 0:02:50]}  Be7 {[%clk 0:02:59]} 6. Nxe4 {[%clk 0:02:50]}  Nxd5 {[%clk 0:03:00]} 7. Qd1 {[%clk 0:02:47]}  O-O {[%clk 0:02:59]} 8. d3 {[%clk 0:02:40]}  Re8 {[%clk 0:02:58]} 9. Be2 {[%clk 0:02:40]}  f5 {[%clk 0:02:54]} 10. Ng3 {[%clk 0:02:40]}  c5 {[%clk 0:02:43]} 11. O-O {[%clk 0:02:39]}  Nc6 {[%clk 0:02:43]} 12. c3 {[%clk 0:02:33]}  Bf6 {[%clk 0:02:42]} 13. d4 {[%clk 0:02:32]}  cxd4 {[%clk 0:02:41]} 14. Nxd4 {[%clk 0:02:31]}  Bxd4 {[%clk 0:02:29]} 15. cxd4 {[%clk 0:02:31]}  f4 {[%clk 0:02:02]} 16. Nh5 {[%clk 0:02:24]}  Qh4 {[%clk 0:01:19]} 17. Bc4 {[%clk 0:02:19]}  Be6 {[%clk 0:01:18]} 18. Re1 {[%clk 0:02:03]}  Rad8 {[%clk 0:01:10]} 19. Rxe6 {[%clk 0:01:44]}  Rxe6 {[%clk 0:01:09]} 20. Nxf4 {[%clk 0:01:44]}  Nxf4 {[%clk 0:00:58]} 21. Bxf4 {[%clk 0:01:44]}  Nxd4 {[%clk 0:00:29]} 22. Be3 {[%clk 0:01:08]}  Nf3+ {[%clk 0:00:16]} 23. Qxf3 {[%clk 0:00:56]}  Qxc4 {[%clk 0:00:16]} 24. Qxb7 {[%clk 0:00:51]}  Red6 {[%clk 0:00:16]} 25. h3 {[%clk 0:00:47]}  Rd1+ {[%clk 0:00:15]} 26. Rxd1 {[%clk 0:00:48]}  Rxd1+ {[%clk 0:00:15]} 27. Kh2 {[%clk 0:00:48]}  Qd5 {[%clk 0:00:10]} 28. Qb8+ {[%clk 0:00:43]}  Qd8 {[%clk 0:00:10]} 29. Bxa7 {[%clk 0:00:25]}  Qxb8+ {[%clk 0:00:08]} 30. Bxb8 {[%clk 0:00:26]}  Rd2 {[%clk 0:00:08]} 31. Be5 {[%clk 0:00:26]}  Rxf2 {[%clk 0:00:08]} 32. a4 {[%clk 0:00:27]}  Rf5 {[%clk 0:00:08]} 33. Bc3 {[%clk 0:00:26]}  Kf7 {[%clk 0:00:08]} 34. g4 {[%clk 0:00:26]}  Rc5 {[%clk 0:00:06]} 35. a5 {[%clk 0:00:25]}  Ke6 {[%clk 0:00:06]} 36. Kg3 {[%clk 0:00:25]}  Kd5 {[%clk 0:00:05]} 37. Kf4 {[%clk 0:00:26]}  Kc4 {[%clk 0:00:05]} 38. Ke4 {[%clk 0:00:21]}  g6 {[%clk 0:00:05]} 39. h4 {[%clk 0:00:18]}  Rb5 {[%clk 0:00:05]} 40. Kf4 {[%clk 0:00:17]}  Rc5 {[%clk 0:00:05]} 41. Bd2 {[%clk 0:00:11]}  Rb5 {[%clk 0:00:05]} 42. b4 {[%clk 0:00:10]}  Rd5 {[%clk 0:00:04]} 43. Be1 {[%clk 0:00:09]}  Kb5 {[%clk 0:00:03]} 44. Ke4 {[%clk 0:00:09]}  Rd7 {[%clk 0:00:02]} 45. Bc3 {[%clk 0:00:09]}  Rd1 {[%clk 0:00:01]} 46. Ke5 {[%clk 0:00:07]}  Rg1 {[%clk 0:00:02]} 47. Kf4 {[%clk 0:00:07]}  Rh1 {[%clk 0:00:01]} 48. Kg5 {[%clk 0:00:07]}  Rg1 {[%clk 0:00:01]} 49. Bd4 {[%clk 0:00:05]}  Rg2 {[%clk 0:00:01]} 50. Bc5 {[%clk 0:00:05]}  Rg3 {[%clk 0:00:01]} 51. Kf4 {[%clk 0:00:05]}  Rg2 {[%clk 0:00:01]} 52. Kf3 {[%clk 0:00:06]}  Rc2 {[%clk 0:00:01]} 53. Ke4 {[%clk 0:00:04]}  Rc4+ {[%clk 0:00:01]} 54. Kf3 {[%clk 0:00:04]}  Ka6 {[%clk 0:00:01]} 55. Ke3 {[%clk 0:00:05]}  Kb5 {[%clk 0:00:02]} 56. Kf3 {[%clk 0:00:05]}  Ka6 {[%clk 0:00:02]} 57. h5 {[%clk 0:00:06]}  gxh5 {[%clk 0:00:01]} 58. gxh5 {[%clk 0:00:06]}  Rc1 {[%clk 0:00:01]} 59. Kg4 {[%clk 0:00:06]}  Rh1 {[%clk 0:00:01]} 60. Kg5 {[%clk 0:00:07]}  Kb5 {[%clk 0:00:02]} 61. Kh6 {[%clk 0:00:07]}  Ka6 {[%clk 0:00:01]} 62. Bd4 {[%clk 0:00:07]}  Kb5 {[%clk 0:00:02]} 63. Bc5 {[%clk 0:00:08]}  Ka6 {[%clk 0:00:02]} 64. Kg5 {[%clk 0:00:08]}  Kb5 {[%clk 0:00:02]} 65. Bf8 {[%clk 0:00:09]}  Ka6 {[%clk 0:00:02]} 66. h6 {[%clk 0:00:09]}  Rg1+ {[%clk 0:00:01]} 67. Kf6 {[%clk 0:00:09]}  Rg6+ {[%clk 0:00:01]} 68. Kf7 {[%clk 0:00:09]}  Kb5 {[%clk 0:00:02]} 69. Ke8 {[%clk 0:00:09]}  Ka6 {[%clk 0:00:02]} 70. Kd7 {[%clk 0:00:09]}  Kb5 {[%clk 0:00:02]} 71. Kc7 {[%clk 0:00:10]}  Re6 {[%clk 0:00:02]} 72. Kb7 {[%clk 0:00:09]}  Rf6 {[%clk 0:00:02]} 73. Bg7 {[%clk 0:00:08]}  Rf7+ {[%clk 0:00:02]} 74. Kc8 {[%clk 0:00:08]}  Re7 {[%clk 0:00:03]} 75. Kd8 {[%clk 0:00:08]}  Re6 {[%clk 0:00:02]} 76. Kd7 {[%clk 0:00:08]}  Rg6 {[%clk 0:00:02]} 77. Kc7 {[%clk 0:00:08]}  Kxb4 {[%clk 0:00:02]} 78. Kd7 {[%clk 0:00:08]}  Kxa5 {[%clk 0:00:02]} 79. Ke7 {[%clk 0:00:08]}  Rxh6 {[%clk 0:00:02]} 80. Bxh6 {[%clk 0:00:08]}  Kb5 {[%clk 0:00:03]} 81. Kf7 {[%clk 0:00:08]}  Kc4 {[%clk 0:00:04]} 82. Kg7 {[%clk 0:00:09]}  Kd3 {[%clk 0:00:04]} 83. Kf6 {[%clk 0:00:10]}  Kc2 {[%clk 0:00:05]} 84. Kg7 {[%clk 0:00:10]}  Kd3 {[%clk 0:00:06]} 85. Kf6 {[%clk 0:00:11]}  Kc2 {[%clk 0:00:06]} 86. Kf7 {[%clk 0:00:12]}  Kd3 {[%clk 0:00:06]} 87. Kg8 {[%clk 0:00:12]}  Kc2 {[%clk 0:00:07]} 88. Kxh7 {[%clk 0:00:13]} 1/2-1/2


[Site "https://www.chess.com"]